[Event "Early-Titled-Tuesday-Blitz-May-28-2024"]
[Site "Chess.com"]
[Date "2024.05.28"]
[Round "3"]
[White "WolfBaoBaoLang"]
[Black "zajka-molotok"]
[Result "1-0"]
[WhiteElo "2073"]
[BlackElo "2530"]
[TimeControl "180+1"]
[EndTime "8:29:20 PDT"]
[Termination "WolfBaoBaoLang won on time"]

1. e4 {[%clk 0:03:00.9]} 1... e6 {[%clk 0:02:59.7]} 2. d4 {[%clk 0:03:00.8]}
2... d5 {[%clk 0:03:00.4]} 3. e5 {[%clk 0:03:01.2]} 3... c5 {[%clk 0:03:00.1]}
4. c3 {[%clk 0:03:01.8]} 4... Nc6 {[%clk 0:03:00.2]} 5. Nf3 {[%clk 0:03:01.8]}
5... Bd7 {[%clk 0:02:58.6]} 6. Na3 {[%clk 0:03:01.7]} 6... cxd4 {[%clk
0:02:53.8]} 7. cxd4 {[%clk 0:03:01.4]} 7... Bxa3 {[%clk 0:02:54.4]} 8. bxa3
{[%clk 0:03:01.1]} 8... Nge7 {[%clk 0:02:53.6]} 9. Bd3 {[%clk 0:03:01]} 9...
Qa5+ {[%clk 0:02:50.5]} 10. Qd2 {[%clk 0:02:58.8]} 10... Rc8 {[%clk 0:02:38.2]}
11. Qxa5 {[%clk 0:02:53.5]} 11... Nxa5 {[%clk 0:02:39.1]} 12. Bd2 {[%clk
0:02:52.8]} 12... Nc4 {[%clk 0:02:38.2]} 13. Bb4 {[%clk 0:02:52.9]} 13... Nc6
{[%clk 0:02:35.8]} 14. Ke2 {[%clk 0:02:48.9]} 14... Nb2 {[%clk 0:02:25.9]} 15.
Rac1 {[%clk 0:02:34]} 15... f6 {[%clk 0:02:21.7]} 16. exf6 {[%clk 0:02:32.4]}
16... gxf6 {[%clk 0:02:22.6]} 17. Bb1 {[%clk 0:02:31.8]} 17... a5 {[%clk
0:02:13.4]} 18. Bc3 {[%clk 0:02:30.1]} 18... Nc4 {[%clk 0:02:12.2]} 19. a4
{[%clk 0:02:26.9]} 19... Ne7 {[%clk 0:02:05.9]} 20. Bc2 {[%clk 0:02:23.5]} 20...
Kf7 {[%clk 0:01:59.2]} 21. Nd2 {[%clk 0:02:20.2]} 21... Nd6 {[%clk 0:01:54]} 22.
Bxa5 {[%clk 0:02:12.9]} 22... Ra8 {[%clk 0:01:49.9]} 23. Bb4 {[%clk 0:02:12.7]}
23... Ndf5 {[%clk 0:01:49.2]} 24. Bxf5 {[%clk 0:02:00.1]} 24... Nxf5 {[%clk
0:01:50.1]} 25. Nb3 {[%clk 0:01:54.7]} 25... Rxa4 {[%clk 0:01:47]} 26. a3 {[%clk
0:01:54.7]} 26... Bb5+ {[%clk 0:01:44.7]} 27. Kd2 {[%clk 0:01:53.5]} 27... Bc4
{[%clk 0:01:44.8]} 28. Nc5 {[%clk 0:01:53.3]} 28... Ra7 {[%clk 0:01:40.5]} 29.
Rhe1 {[%clk 0:01:52.6]} 29... Nxd4 {[%clk 0:01:39.6]} 30. Bc3 {[%clk 0:01:28]}
30... Nb3+ {[%clk 0:01:27.9]} 31. Nxb3 {[%clk 0:01:17.5]} 31... Bxb3 {[%clk
0:01:28.8]} 32. Bd4 {[%clk 0:01:18.1]} 32... Rxa3 {[%clk 0:01:25]} 33. Rc7+
{[%clk 0:01:17.8]} 33... Kg6 {[%clk 0:01:22.5]} 34. Rxe6 {[%clk 0:01:17.8]}
34... Rf8 {[%clk 0:00:55.7]} 35. Bc5 {[%clk 0:01:16.8]} 35... Ra2+ {[%clk
0:00:28.9]} 36. Kc3 {[%clk 0:01:10.2]} 36... Bd1 {[%clk 0:00:27.1]} 37. Re1
{[%clk 0:00:54.9]} 37... Ba4 {[%clk 0:00:19]} 38. Bxf8 {[%clk 0:00:51.5]} 38...
Rc2+ {[%clk 0:00:18.5]} 39. Kb4 {[%clk 0:00:51.8]} 39... Rxc7 {[%clk 0:00:19.4]}
40. Kxa4 {[%clk 0:00:52.3]} 40... Rc2 {[%clk 0:00:17.8]} 41. Re7 {[%clk
0:00:44.1]} 41... Rxf2 {[%clk 0:00:16.9]} 42. Rxb7 {[%clk 0:00:44]} 42... h5
{[%clk 0:00:13.7]} 43. Kb3 {[%clk 0:00:42.1]} 43... Kf5 {[%clk 0:00:13.8]} 44.
Rh7 {[%clk 0:00:40.6]} 44... Rxg2 {[%clk 0:00:13.3]} 45. Rxh5+ {[%clk
0:00:40.7]} 45... Kg6 {[%clk 0:00:13.5]} 46. Rh8 {[%clk 0:00:39.2]} 46... Kf7
{[%clk 0:00:12.5]} 47. Bd6 {[%clk 0:00:39]} 47... Ke6 {[%clk 0:00:12.4]} 48. Bg3
{[%clk 0:00:38.7]} 48... Kf5 {[%clk 0:00:11.9]} 49. Kc3 {[%clk 0:00:38.9]} 49...
Ke4 {[%clk 0:00:11.7]} 50. Re8+ {[%clk 0:00:38]} 50... Kf3 {[%clk 0:00:11.9]}
51. Kd3 {[%clk 0:00:37.1]} 51... f5 {[%clk 0:00:12]} 52. Re5 {[%clk 0:00:37]}
52... f4 {[%clk 0:00:12.1]} 53. Rf5 {[%clk 0:00:37.3]} 53... Rxg3 {[%clk
0:00:07.6]} 54. hxg3 {[%clk 0:00:36.9]} 54... Kxg3 {[%clk 0:00:08.5]} 55. Rxd5
{[%clk 0:00:37.1]} 55... f3 {[%clk 0:00:08.4]} 56. Ke3 {[%clk 0:00:37.3]} 56...
f2 {[%clk 0:00:08.7]} 57. Rf5 {[%clk 0:00:36.6]} 1-0

[Event "Early-Titled-Tuesday-Blitz-May-28-2024"]
[Site "Chess.com"]
[Date "2024.05.28"]
[Round "3"]
[White "Tagir45"]
[Black "ccccvhhhj"]
[Result "1/2-1/2"]
[WhiteElo "2629"]
[BlackElo "2462"]
[TimeControl "180+1"]
[EndTime "8:29:21 PDT"]
[Termination "Game drawn - insufficient material"]

1. e4 {[%clk 0:02:53.5]} 1... e6 {[%clk 0:03:00]} 2. d4 {[%clk 0:02:52.5]} 2...
d5 {[%clk 0:03:00.9]} 3. Nc3 {[%clk 0:02:50.8]} 3... Bb4 {[%clk 0:03:00.3]} 4.
exd5 {[%clk 0:02:43.5]} 4... exd5 {[%clk 0:03:00.3]} 5. Bd3 {[%clk 0:02:40.5]}
5... c6 {[%clk 0:02:55.1]} 6. Ne2 {[%clk 0:02:40]} 6... Nf6 {[%clk 0:02:54.5]}
7. Bf4 {[%clk 0:02:39.6]} 7... O-O {[%clk 0:02:54.3]} 8. f3 {[%clk 0:02:35.6]}
8... c5 {[%clk 0:02:40.7]} 9. dxc5 {[%clk 0:02:20.4]} 9... Bxc5 {[%clk
0:02:36.9]} 10. Qd2 {[%clk 0:02:18]} 10... Nc6 {[%clk 0:02:34.5]} 11. O-O-O
{[%clk 0:02:17.2]} 11... a6 {[%clk 0:02:18.7]} 12. Kb1 {[%clk 0:02:16.9]} 12...
b5 {[%clk 0:02:16.8]} 13. g4 {[%clk 0:02:12.8]} 13... Be6 {[%clk 0:01:58.5]} 14.
Ng3 {[%clk 0:02:02.5]} 14... b4 {[%clk 0:01:49]} 15. Nce2 {[%clk 0:01:45.3]}
15... a5 {[%clk 0:01:47.2]} 16. h4 {[%clk 0:01:20.1]} 16... a4 {[%clk
0:01:46.8]} 17. g5 {[%clk 0:01:09.5]} 17... Nd7 {[%clk 0:01:45.7]} 18. h5 {[%clk
0:01:08.5]} 18... b3 {[%clk 0:01:45.1]} 19. g6 {[%clk 0:01:07.8]} 19... bxa2+
{[%clk 0:01:41.6]} 20. Ka1 {[%clk 0:01:07.5]} 20... a3 {[%clk 0:01:33.6]} 21. b3
{[%clk 0:01:05.1]} 21... Qf6+ {[%clk 0:00:40.4]} 22. c3 {[%clk 0:01:04.3]} 22...
Nde5 {[%clk 0:00:33.3]} 23. Rdf1 {[%clk 0:00:25.5]} 23... Nxd3 {[%clk
0:00:24.9]} 24. Qxd3 {[%clk 0:00:26.4]} 24... Nb4 {[%clk 0:00:24.3]} 25. Qd2
{[%clk 0:00:25.4]} 25... d4 {[%clk 0:00:17]} 26. cxd4 {[%clk 0:00:08.3]} 26...
Bxb3 {[%clk 0:00:16.5]} 27. h6 {[%clk 0:00:05.4]} 27... Nc2+ {[%clk 0:00:14.3]}
28. Qxc2 {[%clk 0:00:05]} 28... Bxc2 {[%clk 0:00:15.2]} 29. gxh7+ {[%clk
0:00:03.8]} 29... Kh8 {[%clk 0:00:15.2]} 30. hxg7+ {[%clk 0:00:04]} 30... Qxg7
{[%clk 0:00:16.1]} 31. Be5 {[%clk 0:00:01.2]} 31... f6 {[%clk 0:00:16.7]} 32.
Nh5 {[%clk 0:00:01.6]} 32... Qe7 {[%clk 0:00:16.1]} 33. Nxf6 {[%clk 0:00:01.9]}
33... Rxf6 {[%clk 0:00:17]} 34. Rh6 {[%clk 0:00:01.9]} 34... Rf8 {[%clk
0:00:16.6]} 35. Rxf6 {[%clk 0:00:01.3]} 35... Rxf6 {[%clk 0:00:16.7]} 36. Nf4
{[%clk 0:00:01.7]} 36... Bd6 {[%clk 0:00:16.1]} 37. Ng6+ {[%clk 0:00:01.5]}
37... Kg7 {[%clk 0:00:14.4]} 38. Nxe7 {[%clk 0:00:02.4]} 38... Bxe7 {[%clk
0:00:13.8]} 39. Rh1 {[%clk 0:00:02.3]} 39... Kh8 {[%clk 0:00:12.6]} 40. Kxa2
{[%clk 0:00:02.7]} 40... Bxh7 {[%clk 0:00:11.1]} 41. Rh6 {[%clk 0:00:02.6]}
41... Kg7 {[%clk 0:00:11.4]} 42. Bxf6+ {[%clk 0:00:01.8]} 42... Bxf6 {[%clk
0:00:12.3]} 43. Rxh7+ {[%clk 0:00:01.6]} 43... Kxh7 {[%clk 0:00:12.5]} 44. Kxa3
{[%clk 0:00:02.5]} 44... Bxd4 {[%clk 0:00:12.9]} 45. f4 {[%clk 0:00:03.2]} 45...
Be3 {[%clk 0:00:12.8]} 46. f5 {[%clk 0:00:04.1]} 46... Kg7 {[%clk 0:00:13.5]}
47. f6+ {[%clk 0:00:04.9]} 47... Kxf6 {[%clk 0:00:14.4]} 1/2-1/2

[Event "Early-Titled-Tuesday-Blitz-May-28-2024"]
[Site "Chess.com"]
[Date "2024.05.28"]
[Round "3"]
[White "Narek_Ghimoyan"]
[Black "ManMish2"]
[Result "0-1"]
[WhiteElo "2423"]
[BlackElo "2699"]
[TimeControl "180+1"]
[EndTime "8:29:21 PDT"]
[Termination "ManMish2 won by checkmate"]

1. e4 {[%clk 0:03:00.9]} 1... e5 {[%clk 0:02:59.8]} 2. Nf3 {[%clk 0:03:00.6]}
2... Nc6 {[%clk 0:03:00.1]} 3. Bb5 {[%clk 0:03:00.3]} 3... a6 {[%clk 0:03:00.1]}
4. Ba4 {[%clk 0:03:00.4]} 4... Nf6 {[%clk 0:03:00.1]} 5. O-O {[%clk 0:03:00.4]}
5... Nxe4 {[%clk 0:03:00.5]} 6. Re1 {[%clk 0:02:50.5]} 6... Nc5 {[%clk 0:03:00]}
7. Bxc6 {[%clk 0:02:49.6]} 7... dxc6 {[%clk 0:03:00.9]} 8. d4 {[%clk 0:02:49.3]}
8... Ne6 {[%clk 0:03:00.3]} 9. Nxe5 {[%clk 0:02:49.3]} 9... Be7 {[%clk 0:03:00]}
10. Be3 {[%clk 0:02:48.4]} 10... O-O {[%clk 0:02:59.4]} 11. c4 {[%clk 0:02:48]}
11... Bf6 {[%clk 0:02:55]} 12. f4 {[%clk 0:02:46.9]} 12... Bh4 {[%clk
0:02:54.8]} 13. g3 {[%clk 0:02:45.6]} 13... Bf6 {[%clk 0:02:55.1]} 14. Nc3
{[%clk 0:02:45.2]} 14... g6 {[%clk 0:02:49.1]} 15. Qd2 {[%clk 0:02:30.8]} 15...
Ng7 {[%clk 0:02:41.5]} 16. Rad1 {[%clk 0:02:28.9]} 16... Bh3 {[%clk 0:02:40.3]}
17. d5 {[%clk 0:02:26.6]} 17... cxd5 {[%clk 0:02:26.8]} 18. Nxd5 {[%clk
0:02:27.5]} 18... Nf5 {[%clk 0:02:16.1]} 19. Bc5 {[%clk 0:02:19.1]} 19... Re8
{[%clk 0:02:12.4]} 20. Nxg6 {[%clk 0:02:14.3]} 20... Rxe1+ {[%clk 0:02:06.7]}
21. Rxe1 {[%clk 0:02:15.2]} 21... hxg6 {[%clk 0:02:06.2]} 22. Re8+ {[%clk
0:02:14.2]} 22... Qxe8 {[%clk 0:02:03.5]} 23. Nxf6+ {[%clk 0:02:14.3]} 23... Kg7
{[%clk 0:02:02.7]} 24. Nxe8+ {[%clk 0:02:14]} 24... Rxe8 {[%clk 0:02:03.6]} 25.
Kf2 {[%clk 0:02:09.7]} 25... Bg4 {[%clk 0:02:00]} 26. Bb4 {[%clk 0:02:03]} 26...
b6 {[%clk 0:01:55.8]} 27. Bc3+ {[%clk 0:02:03.1]} 27... Kh7 {[%clk 0:01:29.2]}
28. b3 {[%clk 0:01:46.2]} 28... Nd6 {[%clk 0:01:07.6]} 29. Qd4 {[%clk 0:01:34]}
29... Ne4+ {[%clk 0:01:06.7]} 30. Kf1 {[%clk 0:01:30.1]} 30... f6 {[%clk
0:01:02.1]} 31. Bb2 {[%clk 0:01:23]} 31... c5 {[%clk 0:00:57.7]} 32. Qd5 {[%clk
0:01:21.5]} 32... Re7 {[%clk 0:00:56.6]} 33. Qd8 {[%clk 0:01:17.7]} 33... Rd7
{[%clk 0:00:52.1]} 34. Qe8 {[%clk 0:00:52.4]} 34... Rd1+ {[%clk 0:00:29.4]} 35.
Kg2 {[%clk 0:00:52.2]} 35... Rd2+ {[%clk 0:00:28.1]} 36. Kg1 {[%clk 0:00:52.1]}
36... Bf3 {[%clk 0:00:16.3]} 37. Qf7+ {[%clk 0:00:42.6]} 37... Kh6 {[%clk
0:00:15.8]} 38. Qf8+ {[%clk 0:00:38.1]} 38... Kh5 {[%clk 0:00:15.7]} 39. Qh8+
{[%clk 0:00:14.3]} 39... Kg4 {[%clk 0:00:15.5]} 40. Qh4+ {[%clk 0:00:11.4]}
40... Kf5 {[%clk 0:00:15.3]} 41. g4+ {[%clk 0:00:10.9]} 41... Bxg4 {[%clk
0:00:13.4]} 42. Bxf6 {[%clk 0:00:08.6]} 42... Rd1+ {[%clk 0:00:08.6]} 43. Kg2
{[%clk 0:00:08.4]} 43... Rd2+ {[%clk 0:00:09]} 44. Kg1 {[%clk 0:00:08.9]} 44...
Bf3 {[%clk 0:00:08.6]} 45. h3 {[%clk 0:00:06.4]} 45... Rd1+ {[%clk 0:00:07.2]}
46. Kh2 {[%clk 0:00:05]} 46... Rh1# {[%clk 0:00:07.3]} 0-1

[Event "Early-Titled-Tuesday-Blitz-May-28-2024"]
[Site "Chess.com"]
[Date "2024.05.28"]
[Round "3"]
[White "krstulov_alex"]
[Black "platy3"]
[Result "1-0"]
[WhiteElo "2665"]
[BlackElo "2873"]
[TimeControl "180+1"]
[EndTime "8:29:22 PDT"]
[Termination "krstulov_alex won by resignation"]

1. d4 {[%clk 0:02:54]} 1... Nf6 {[%clk 0:02:59.1]} 2. Nf3 {[%clk 0:02:54]} 2...
d5 {[%clk 0:02:59]} 3. Bf4 {[%clk 0:02:53.5]} 3... c5 {[%clk 0:02:57.9]} 4. e3
{[%clk 0:02:53.7]} 4... Nc6 {[%clk 0:02:58.2]} 5. Nbd2 {[%clk 0:02:53.7]} 5...
Nh5 {[%clk 0:02:58.7]} 6. dxc5 {[%clk 0:02:52.7]} 6... Nxf4 {[%clk 0:02:58.7]}
7. exf4 {[%clk 0:02:53.6]} 7... g6 {[%clk 0:02:59.4]} 8. c3 {[%clk 0:02:53.2]}
8... Bh6 {[%clk 0:02:59.4]} 9. g3 {[%clk 0:02:53.2]} 9... O-O {[%clk 0:03:00.1]}
10. Bg2 {[%clk 0:02:53]} 10... b6 {[%clk 0:02:58]} 11. cxb6 {[%clk 0:02:53.2]}
11... Ba6 {[%clk 0:02:57.7]} 12. b7 {[%clk 0:02:35.4]} 12... Rb8 {[%clk
0:02:55.5]} 13. Qa4 {[%clk 0:02:36.1]} 13... Qb6 {[%clk 0:02:54.5]} 14. Qb3
{[%clk 0:02:35.5]} 14... Rxb7 {[%clk 0:02:44.8]} 15. Qxb6 {[%clk 0:02:34.7]}
15... Rxb6 {[%clk 0:02:45.7]} 16. O-O-O {[%clk 0:02:35.1]} 16... Rfb8 {[%clk
0:02:44.6]} 17. Nb3 {[%clk 0:02:31.8]} 17... e5 {[%clk 0:02:25.4]} 18. Rxd5
{[%clk 0:02:31.7]} 18... exf4 {[%clk 0:02:25.2]} 19. g4 {[%clk 0:02:32.1]} 19...
Bc4 {[%clk 0:02:22.5]} 20. Rc5 {[%clk 0:02:27]} 20... Be6 {[%clk 0:02:12.9]} 21.
Nfd2 {[%clk 0:01:56.3]} 21... f3 {[%clk 0:01:22.9]} 22. Bxf3 {[%clk 0:01:54.8]}
22... Ne7 {[%clk 0:00:47.5]} 23. g5 {[%clk 0:01:52.5]} 23... Bf8 {[%clk
0:00:47.4]} 24. Re1 {[%clk 0:01:41.4]} 24... Nf5 {[%clk 0:00:46.8]} 25. Rc6
{[%clk 0:01:37.9]} 25... Rb5 {[%clk 0:00:33.3]} 26. Be4 {[%clk 0:01:28.5]} 26...
a5 {[%clk 0:00:23.4]} 27. Bd3 {[%clk 0:00:59.2]} 27... R5b7 {[%clk 0:00:09.9]}
28. Ba6 {[%clk 0:00:55.5]} 28... Ra7 {[%clk 0:00:09.5]} 29. Bc4 {[%clk
0:00:53.5]} 29... Bd7 {[%clk 0:00:04.5]} 30. Rf6 {[%clk 0:00:47.5]} 30... Nd6
{[%clk 0:00:04.1]} 31. Bd5 {[%clk 0:00:44.8]} 31... a4 {[%clk 0:00:03.6]} 32.
Nc5 {[%clk 0:00:43.9]} 32... Be8 {[%clk 0:00:03.1]} 33. Nde4 {[%clk 0:00:40.4]}
33... Nf5 {[%clk 0:00:02.7]} 34. Rxf5 {[%clk 0:00:39.5]} 34... gxf5 {[%clk
0:00:01.8]} 35. Nf6+ {[%clk 0:00:40.4]} 35... Kh8 {[%clk 0:00:02.1]} 36. Nd3
{[%clk 0:00:26]} 36... Bb5 {[%clk 0:00:02.5]} 37. Ne5 {[%clk 0:00:26.6]} 37...
Bg7 {[%clk 0:00:02.2]} 38. Nxf7+ {[%clk 0:00:26.6]} 38... Rxf7 {[%clk
0:00:02.6]} 39. Bxf7 {[%clk 0:00:27.5]} 39... a3 {[%clk 0:00:02.6]} 40. b3
{[%clk 0:00:23.6]} 40... h6 {[%clk 0:00:03]} 41. h4 {[%clk 0:00:21.5]} 41... Rd8
{[%clk 0:00:03.3]} 42. Be8 {[%clk 0:00:20.5]} 42... Ba6 {[%clk 0:00:03.2]} 43.
Bg6 {[%clk 0:00:20.8]} 43... Bb7 {[%clk 0:00:02.9]} 44. Re8+ {[%clk 0:00:20.6]}
44... Rxe8 {[%clk 0:00:03.3]} 45. Bxe8 {[%clk 0:00:21.5]} 45... hxg5 {[%clk
0:00:03.2]} 46. hxg5 {[%clk 0:00:21.9]} 46... Bf8 {[%clk 0:00:03.9]} 47. f4
{[%clk 0:00:22.2]} 47... Bd6 {[%clk 0:00:04]} 48. Nh5 {[%clk 0:00:22.8]} 48...
Bf3 {[%clk 0:00:04.3]} 49. Kc2 {[%clk 0:00:23.4]} 49... Bxh5 {[%clk 0:00:04.2]}
50. Bxh5 {[%clk 0:00:24.3]} 50... Bxf4 {[%clk 0:00:04.9]} 51. g6 {[%clk
0:00:25]} 51... Kg7 {[%clk 0:00:05.3]} 52. b4 {[%clk 0:00:25.7]} 52... Bg5
{[%clk 0:00:04.9]} 53. Kb3 {[%clk 0:00:26.1]} 53... Bc1 {[%clk 0:00:05.6]} 54.
b5 {[%clk 0:00:26]} 54... f4 {[%clk 0:00:05.3]} 55. c4 {[%clk 0:00:26.5]} 55...
Be3 {[%clk 0:00:05.8]} 56. Bf3 {[%clk 0:00:27.4]} 56... Kxg6 {[%clk 0:00:05.9]}
57. Kxa3 {[%clk 0:00:28.2]} 57... Kf6 {[%clk 0:00:06.7]} 58. Kb4 {[%clk
0:00:29.1]} 58... Ke7 {[%clk 0:00:06.6]} 59. a4 {[%clk 0:00:30]} 59... Kd6
{[%clk 0:00:06.8]} 60. a5 {[%clk 0:00:30.5]} 60... Bc5+ {[%clk 0:00:07.3]} 61.
Ka4 {[%clk 0:00:30.7]} 61... Ke5 {[%clk 0:00:07.7]} 62. b6 {[%clk 0:00:31.1]}
62... Kd6 {[%clk 0:00:08.1]} 63. Kb5 {[%clk 0:00:31.7]} 63... Bd4 {[%clk
0:00:08.6]} 64. a6 {[%clk 0:00:32]} 1-0

[Event "Early-Titled-Tuesday-Blitz-May-28-2024"]
[Site "Chess.com"]
[Date "2024.05.28"]
[Round "3"]
[White "Skatchkov_V"]
[Black "LLariMarc"]
[Result "0-1"]
[WhiteElo "2636"]
[BlackElo "2496"]
[TimeControl "180+1"]
[EndTime "8:29:22 PDT"]
[Termination "LLariMarc won by checkmate"]

1. d4 {[%clk 0:03:00.6]} 1... e6 {[%clk 0:02:58.9]} 2. c4 {[%clk 0:02:59.2]}
2... Bb4+ {[%clk 0:02:58.7]} 3. Nd2 {[%clk 0:02:58.9]} 3... d5 {[%clk
0:02:55.7]} 4. Nf3 {[%clk 0:02:59]} 4... Nf6 {[%clk 0:02:55.2]} 5. a3 {[%clk
0:02:58.8]} 5... Be7 {[%clk 0:02:54.6]} 6. e3 {[%clk 0:02:54]} 6... O-O {[%clk
0:02:54]} 7. Bd3 {[%clk 0:02:52.5]} 7... b6 {[%clk 0:02:53.9]} 8. O-O {[%clk
0:02:51.5]} 8... Bb7 {[%clk 0:02:52.9]} 9. Qc2 {[%clk 0:02:48.7]} 9... Nbd7
{[%clk 0:02:48.7]} 10. b4 {[%clk 0:02:35.2]} 10... c5 {[%clk 0:02:35.3]} 11.
dxc5 {[%clk 0:02:27.7]} 11... bxc5 {[%clk 0:02:35.1]} 12. b5 {[%clk 0:02:28.3]}
12... h6 {[%clk 0:02:27.6]} 13. Bb2 {[%clk 0:02:27.3]} 13... Rc8 {[%clk
0:02:19.3]} 14. Rfd1 {[%clk 0:02:26.3]} 14... Qc7 {[%clk 0:02:18]} 15. a4 {[%clk
0:02:18.6]} 15... a5 {[%clk 0:02:14]} 16. Rac1 {[%clk 0:01:57.7]} 16... Rfd8
{[%clk 0:02:09.2]} 17. h3 {[%clk 0:01:56.7]} 17... Ra8 {[%clk 0:02:06]} 18. cxd5
{[%clk 0:01:49.5]} 18... exd5 {[%clk 0:02:04.6]} 19. e4 {[%clk 0:01:50.1]} 19...
d4 {[%clk 0:01:48.4]} 20. Nxd4 {[%clk 0:01:39.4]} 20... Ne5 {[%clk 0:01:37.3]}
21. Bf1 {[%clk 0:01:39.6]} 21... Qb6 {[%clk 0:01:32.1]} 22. Nf5 {[%clk
0:01:39.5]} 22... Qe6 {[%clk 0:01:28.3]} 23. Nc4 {[%clk 0:01:09.5]} 23... Bxe4
{[%clk 0:01:15.5]} 24. Nxe7+ {[%clk 0:01:02.1]} 24... Qxe7 {[%clk 0:01:16.4]}
25. Qc3 {[%clk 0:00:56.1]} 25... Nxc4 {[%clk 0:01:07.3]} 26. Bxc4 {[%clk
0:00:57]} 26... Qb7 {[%clk 0:01:00.9]} 27. Qg3 {[%clk 0:00:50.4]} 27... Kh7
{[%clk 0:00:46.8]} 28. f3 {[%clk 0:00:41.2]} 28... Bg6 {[%clk 0:00:46.8]} 29.
Qe5 {[%clk 0:00:34.9]} 29... Re8 {[%clk 0:00:32.6]} 30. Qxc5 {[%clk 0:00:34.3]}
30... Rac8 {[%clk 0:00:30.6]} 31. Qd4 {[%clk 0:00:29.4]} 31... Qb8 {[%clk
0:00:23.2]} 32. Bf1 {[%clk 0:00:26]} 32... Qg3 {[%clk 0:00:20.6]} 33. Rxc8
{[%clk 0:00:21.8]} 33... Rxc8 {[%clk 0:00:21.5]} 34. Qf2 {[%clk 0:00:22.1]}
34... Qxf2+ {[%clk 0:00:20.6]} 35. Kxf2 {[%clk 0:00:19.1]} 35... Rc2+ {[%clk
0:00:21.5]} 36. Ke3 {[%clk 0:00:13.3]} 36... Rxb2 {[%clk 0:00:21.9]} 37. g4
{[%clk 0:00:12.1]} 37... Rb4 {[%clk 0:00:21.3]} 38. Rd6 {[%clk 0:00:06.5]} 38...
Rxa4 {[%clk 0:00:20.3]} 39. Ra6 {[%clk 0:00:07.2]} 39... Nd5+ {[%clk 0:00:19.3]}
40. Kf2 {[%clk 0:00:06.2]} 40... Ra2+ {[%clk 0:00:18.7]} 41. Kg3 {[%clk
0:00:06.6]} 41... a4 {[%clk 0:00:18.9]} 42. Bc4 {[%clk 0:00:05.5]} 42... Rd2
{[%clk 0:00:18.1]} 43. Rxa4 {[%clk 0:00:05.9]} 43... Nb6 {[%clk 0:00:18.4]} 44.
Rb4 {[%clk 0:00:05.8]} 44... Nxc4 {[%clk 0:00:18.9]} 45. Rxc4 {[%clk 0:00:06.7]}
45... Rb2 {[%clk 0:00:19.5]} 46. Rc5 {[%clk 0:00:07.5]} 46... Bd3 {[%clk
0:00:19.8]} 47. Rc7 {[%clk 0:00:07.5]} 47... f6 {[%clk 0:00:19.4]} 48. h4 {[%clk
0:00:06.9]} 48... Bxb5 {[%clk 0:00:19.4]} 49. Rb7 {[%clk 0:00:06.7]} 49... Rb3
{[%clk 0:00:20]} 50. Kf4 {[%clk 0:00:07.3]} 50... Bc4 {[%clk 0:00:20.5]} 51. Rc7
{[%clk 0:00:06.6]} 51... Bd5 {[%clk 0:00:20.5]} 52. g5 {[%clk 0:00:06.9]} 52...
Rxf3+ {[%clk 0:00:20.8]} 53. Kg4 {[%clk 0:00:07.2]} 53... f5+ {[%clk 0:00:20.9]}
54. Kh5 {[%clk 0:00:07.7]} 54... hxg5 {[%clk 0:00:19.5]} 55. hxg5 {[%clk
0:00:07.7]} 55... Rh3# {[%clk 0:00:19.6]} 0-1

[Event "Early-Titled-Tuesday-Blitz-May-28-2024"]
[Site "Chess.com"]
[Date "2024.05.28"]
[Round "3"]
[White "eltenedor"]
[Black "secrethawk1"]
[Result "0-1"]
[WhiteElo "2180"]
[BlackElo "2413"]
[TimeControl "180+1"]
[EndTime "8:29:23 PDT"]
[Termination "secrethawk1 won on time"]

1. f4 {[%clk 0:03:00.9]} 1... d5 {[%clk 0:02:59.5]} 2. Nf3 {[%clk 0:03:00.4]}
2... Nf6 {[%clk 0:02:58.9]} 3. b3 {[%clk 0:03:00.1]} 3... c5 {[%clk 0:02:57]} 4.
e3 {[%clk 0:02:58.4]} 4... Nc6 {[%clk 0:02:57.9]} 5. Bb5 {[%clk 0:02:58]} 5...
Bd7 {[%clk 0:02:48.1]} 6. Bb2 {[%clk 0:02:54.8]} 6... g6 {[%clk 0:02:31]} 7. Nc3
{[%clk 0:02:37.7]} 7... a6 {[%clk 0:02:22.8]} 8. Bxc6 {[%clk 0:02:16.2]} 8...
Bxc6 {[%clk 0:02:04.1]} 9. Ne5 {[%clk 0:02:15.7]} 9... Bg7 {[%clk 0:02:02.8]}
10. Nxc6 {[%clk 0:02:11.4]} 10... bxc6 {[%clk 0:02:00.6]} 11. Na4 {[%clk
0:02:09.6]} 11... Qd6 {[%clk 0:01:48.1]} 12. Be5 {[%clk 0:02:03.8]} 12... Qe6
{[%clk 0:01:42.9]} 13. Nxc5 {[%clk 0:01:57.6]} 13... Qf5 {[%clk 0:01:35.7]} 14.
O-O {[%clk 0:01:53.9]} 14... O-O {[%clk 0:01:33.6]} 15. Re1 {[%clk 0:01:18.9]}
15... h5 {[%clk 0:01:21.6]} 16. d3 {[%clk 0:01:16.9]} 16... Rfd8 {[%clk
0:01:17.1]} 17. Qf3 {[%clk 0:01:06.1]} 17... h4 {[%clk 0:01:07.5]} 18. Rad1
{[%clk 0:00:59.2]} 18... Qc8 {[%clk 0:00:38.3]} 19. e4 {[%clk 0:00:46.3]} 19...
dxe4 {[%clk 0:00:33.4]} 20. Nxe4 {[%clk 0:00:43.9]} 20... Nd5 {[%clk 0:00:21.3]}
21. Bxg7 {[%clk 0:00:40.3]} 21... Kxg7 {[%clk 0:00:22.2]} 22. c4 {[%clk
0:00:33.2]} 22... Nc7 {[%clk 0:00:12.7]} 23. d4 {[%clk 0:00:31.9]} 23... Qf5
{[%clk 0:00:10.9]} 24. Nc3 {[%clk 0:00:22.9]} 24... Ne6 {[%clk 0:00:09.2]} 25.
Qe3 {[%clk 0:00:18.4]} 25... Qxf4 {[%clk 0:00:05.7]} 26. d5 {[%clk 0:00:15.3]}
26... Qxe3+ {[%clk 0:00:02.5]} 27. Rxe3 {[%clk 0:00:16.2]} 27... cxd5 {[%clk
0:00:02.7]} 28. Rxd5 {[%clk 0:00:15.6]} 28... Nf4 {[%clk 0:00:01.9]} 29. Rxd8
{[%clk 0:00:09.1]} 29... Rxd8 {[%clk 0:00:02.8]} 30. g3 {[%clk 0:00:08]} 30...
hxg3 {[%clk 0:00:02.1]} 31. hxg3 {[%clk 0:00:08.9]} 31... Ne6 {[%clk 0:00:01.7]}
32. Nd5 {[%clk 0:00:08.5]} 32... Kf8 {[%clk 0:00:01.5]} 33. Rc3 {[%clk
0:00:05.6]} 33... a5 {[%clk 0:00:02.1]} 34. a3 {[%clk 0:00:05.4]} 34... Nd4
{[%clk 0:00:01.8]} 35. Kf2 {[%clk 0:00:04]} 35... e6 {[%clk 0:00:01.5]} 36. Ne3
{[%clk 0:00:03.6]} 36... Rb8 {[%clk 0:00:01.2]} 37. Nc2 {[%clk 0:00:02.4]} 37...
Rxb3 {[%clk 0:00:01.3]} 38. Rxb3 {[%clk 0:00:02.5]} 38... Nxb3 {[%clk
0:00:02.2]} 39. Ne3 {[%clk 0:00:02.5]} 39... Nc5 {[%clk 0:00:02.5]} 40. Ke2
{[%clk 0:00:02.9]} 40... Ke7 {[%clk 0:00:02.4]} 41. Kd2 {[%clk 0:00:03.5]} 41...
Kd6 {[%clk 0:00:02.6]} 42. Kc3 {[%clk 0:00:03.5]} 42... Ne4+ {[%clk 0:00:03.1]}
43. Kd4 {[%clk 0:00:03.8]} 43... Nxg3 {[%clk 0:00:03.5]} 44. c5+ {[%clk
0:00:04.1]} 44... Kc6 {[%clk 0:00:03.4]} 45. Nc4 {[%clk 0:00:05]} 45... Nf5+
{[%clk 0:00:03.4]} 46. Ke5 {[%clk 0:00:04.2]} 46... Kxc5 {[%clk 0:00:04.3]} 47.
Ne3 {[%clk 0:00:04.1]} 47... Nxe3 {[%clk 0:00:04.3]} 0-1